Cogmind - Beta 15 @@@ ROGUE MODE // 2025.07.11 @ 14:07:44 Player: cingulata Result: Self-destructed Performance ------------- Evolutions (2) 1000 Regions Visited (5) 1000 Robots Destroyed (47) 235 Value Destroyed (1185) 1185 Prototype IDs (24) 480 Alien Tech Used (0) 0 Bonus (300) 300 TOTAL SCORE: 4200 Bonus ------- Aligned with FarCom 300 Cogmind --------- Core Integrity 341/550 Matter 3/300 Energy 265/265 System Corruption 0% Temperature Cool (0) Movement Treading (232) Ox1 Location -8/Materials Parts ------- > --- POWER (1) -------- Improved Ion Engine > --- PROPULSION (4) --- Light Treads Improved Treads Advanced Treads Advanced Treads > --- UTILITY (4) ------ Cooling System Huge Storage Unit Utility Shielding Improved Light Armor Plating > --- WEAPON (2) ------- Assault Cannon Assault Cannon > --- INVENTORY (25) --- Ion Engine Light Nuclear Core Light Nuclear Core Light Nuclear Core Improved Treads Flight Unit Flight Unit Flight Unit Flight Unit Flight Unit Cesium-ion Thruster Structural Scanner Experimental Sensor Array Seismic Detector ECM Suite Core Shielding Light Armor Plating Guided Plasma Cannon Shotgun Shotgun Improved Assault Rifle Improved Light Cannon Improved Light Cannon Improved Grenade Launcher Mining Claw Peak State ------------ > --- POWER ------------ Light Deuterium Engine > --- PROPULSION ------- Improved Treads Improved Treads Advanced Treads Advanced Treads > --- UTILITY ---------- Cooling System Huge Storage Unit Utility Shielding Light Armor Plating > --- WEAPON ----------- Assault Cannon Assault Cannon > --- INVENTORY -------- Ion Engine Light Ion Engine Light Nuclear Core Improved Treads Flight Unit Flight Unit Flight Unit Flight Unit Flight Unit Cesium-ion Thruster Structural Scanner Experimental Sensor Array Seismic Detector ECM Suite Core Shielding Light Armor Plating Guided Plasma Cannon Shotgun Shotgun Improved Assault Rifle Improved Light Cannon Improved Light Cannon Assault Cannon Improved Grenade Launcher Mining Claw [Rating: 29] Favorites ----------- Power Light Ion Engine Engine Light Ion Engine Power Core Light Nuclear Core Propulsion Improved Treads Treads Improved Treads Leg Aluminum Leg Utility Huge Storage Unit Device Seismic Detector Storage Huge Storage Unit Protection Light Armor Plating Weapon Improved Assault Rifle Ballistic Gun Improved Assault Rifle Ballistic Cannon Assault Cannon Special Weapon Mining Laser Slashing Weapon Mining Claw Build | -11 -10 -10 -10 -9 -8 ------- Run | Yrd Mat Min Exi Min Mat Slots Evolved 4 | . . . . . 4 Power . | . . . . . . Propulsion 2 | . . . . . 2 Utility 2 | . . . . . 2 Weapon . | . . . . . . Parts Attached 41 | 1 16 4 . . 20 Power 8 | . 4 1 . . 3 Engine 7 | . 3 1 . . 3 Core 1 | . 1 . . . . Reactor . | . . . . . . Propulsion 9 | . 3 2 . . 4 Treads 8 | . 2 2 . . 4 Leg 1 | . 1 . . . . Wheel . | . . . . . . Hover . | . . . . . . Flight . | . . . . . . Utility 10 | 1 3 1 . . 5 Device 3 | 1 . . . . 2 Storage 2 | . 2 . . . . Processor . | . . . . . . Hackware . | . . . . . . Protection 5 | . 1 1 . . 3 Artifact . | . . . . . . Weapon 14 | . 6 . . . 8 Energy Gun . | . . . . . . Energy Cannon . | . . . . . . Ballistic Gun 4 | . 3 . . . 1 Ballistic Cannon 8 | . 1 . . . 7 Launcher . | . . . . . . Special Weapon 1 | . 1 . . . . Impact Weapon . | . . . . . . Slashing Weapon 1 | . 1 . . . . Piercing Weapon . | . . . . . . Special Melee Weapon . | . . . . . . Unidentified Prototypes 1 | . 1 . . . . Parts Lost 7 | . 2 1 . . 4 Power 3 | . 2 . . . 1 Propulsion 1 | . . . . . 1 Utility 2 | . . 1 . . 1 Weapon 1 | . . . . . 1 Highest Loss Streak 4 | . 1 1 . . 4 To Critical Strikes . | . . . . . . Average Backups 21 | 6 17 24 24 24 24 Power 2 | 1 1 1 3 3 3 Propulsion 7 | 4 6 9 7 7 6 Utility 6 | . 4 7 7 7 5 Weapon 6 | 1 4 6 7 7 8 Tool/Special . | . . . . . . Unused Backups 21 | . 4 . 1 . 16 Power 3 | . . . . . 3 Propulsion 8 | . 1 . 1 . 6 Utility 5 | . 2 . . . 3 Weapon 4 | . . . . . 4 Tool/Special 1 | . 1 . . . . Average Slot Usage (%) 96 | . 95 100 86 100 96 Engine 12 | . 11 13 14 14 9 Treads 26 | . 20 28 28 28 32 Leg 2 | . 6 . . . . Device 5 | . 8 . . . 10 Storage 13 | . 15 14 14 14 9 Protection 10 | . 3 14 14 14 15 Ballistic Gun 17 | . 21 27 7 23 . Ballistic Cannon 2 | . . . . . 15 Slashing Weapon 3 | . 5 . 7 4 1 Peak Build Rating 29 | 7 18 18 15 16 29 Average Rating 15 | 6 12 15 11 15 23 On Entrance 12 | 6 7 16 15 14 16 Naked Turns . | . . . . . . Heaviest Build 103 | 12 92 92 91 92 103 Greatest Support 90 | 20 46 46 43 43 90 Greatest Overweight (x) 28 | . 28 2 2 2 1 Average Overweight (x) 1 | . . 1 1 2 1 Largest Inventory Capacity 25 | 8 25 25 25 25 25 Average Capacity 23 | 8 20 25 25 25 25 Most Carried 25 | 6 25 25 25 25 25 Average Carried 21 | 6 17 24 24 24 24 Final Capacity 25 | 8 25 25 25 25 25 Final Carried 25 | 6 23 25 24 25 25 Class Distribution -------------------- 100% | Mutant Dominant Class ---------------- Mutant | -10/Materials Mutant | -10/Mines Mutant | -10/Exiles Mutant | -9/Mines Mutant | -8/Materials Resources | -11 -10 -10 -10 -9 -8 ----------- Run | Yrd Mat Min Exi Min Mat Matter Collected 1731 | 212 761 201 . 68 489 Remotely . | . . . . . . Salvage Created 1568 | 27 681 368 . 14 478 Parts 91 | 4 40 24 . 1 22 Haulers Intercepted 4 | . 2 . . . 2 Recyclers Shooed 2 | . . 1 . . 1 Parts Field Recycled . | . . . . . . Retrieved Matter . | . . . . . . Parts Self-Destructed . | . . . . . . Prevented . | . . . . . . Kills | -11 -10 -10 -10 -9 -8 ------- Run | Yrd Mat Min Exi Min Mat Combat Hostiles Destroyed 30 | . 13 8 . . 9 Melee 1 | . . . . . 1 Guns 21 | . 13 8 . . . Cannons 8 | . . . . . 8 Classes Destroyed 10 | 1 6 2 . . 1 Worker 2 | . . 1 . . 1 Builder 2 | . 1 . . 1 . Tunneler 2 | 1 . . . . 1 Hauler 4 | . 2 . . . 2 Recycler 2 | . . 1 . . 1 Operator 3 | . 1 . . . 2 Watcher 2 | . 2 . . . . Swarmer 6 | . 3 3 . . . Grunt 23 | . 10 5 . . 8 Sentry 1 | . . . . . 1 Best Kill Streak 4 | 1 4 3 . 1 3 Combat Bots Only 3 | . 3 3 . . 2 Max Kills in Single Turn 1 | 1 1 1 . 1 1 Gunslinging . | . . . . . . Exploded . | . . . . . . Melee 1 | . . . . . 1 Uniques/NPCs Destroyed . | . . . . . . Combat | -11 -10 -10 -10 -9 -8 -------- Run | Yrd Mat Min Exi Min Mat Hostile Shots Fired 230 | . 62 29 . 2 137 Missed 55 | . 17 3 . . 35 Hits 175 | . 45 26 . 2 102 Projectile 175 | . 45 26 . 2 102 Critical Strikes 9 | . 1 1 . . 7 Damage Taken 2571 | . 653 311 . 25 1582 Core 357 | . 102 46 . . 209 Absorbed by Shields . | . . . . . . Redirected to Shielding 76 | . 31 22 . . 23 Regen/Repaired (Parts) 85 | . . . . . 85 Core Remaining (%) 70 | 100 . . . 40 . Volleys Fired 137 | 1 62 20 . . 54 Largest 2 | 2 2 2 . . 2 Hottest 100 | 40 100 46 . . 74 Shots Fired 264 | 2 118 37 . 1 106 Gun 155 | 2 114 37 . 1 1 Cannon 105 | . . . . . 105 Launcher . | . . . . . . Special 4 | . 4 . . . . Kinetic 260 | 2 114 37 . 1 106 Thermal 4 | . 4 . . . . Explosive . | . . . . . . Electromagnetic . | . . . . . . Robot Hit Streak 24 | 1 14 24 . . 13 Robot Miss Streak 5 | . 4 1 . 1 5 Penetration Max . | . . . . . . Secondary Targets 3 | . 1 2 . . . Max Gunslinging Chain 1 | . 1 1 . . . Shots Hit Robots 187 | 1 79 31 . 1 75 Core Hits 69 | 1 29 12 . . 27 Critical Kills . | . . . . . . Critical Parts Destroyed . | . . . . . . Critical Strikes 2 | . . . . . 2 Blast 2 | . . . . . 2 Melee Attacks 36 | . 16 3 . 1 16 Impact . | . . . . . . Slashing 36 | . 16 3 . 1 16 Piercing . | . . . . . . Sneak Attacks 4 | . . . . 1 3 Combat Hostiles . | . . . . . . Follow-up Attacks . | . . . . . . Damage Inflicted 3603 | 10 1149 525 . 95 1824 Guns 1690 | 10 1149 508 . . 23 Cannons 1640 | . . . . . 1640 Explosions . | . . . . . . Melee 206 | . . . . 50 156 Ramming 67 | . . 17 . 45 5 Kinetic 3330 | 10 1149 508 . . 1663 Thermal . | . . . . . . Explosive . | . . . . . . Electromagnetic . | . . . . . . Impact . | . . . . . . Slashing 206 | . . . . 50 156 Piercing . | . . . . . . Highest Corruption 1 | . 1 1 1 1 . Average Corruption 1 | . 1 1 1 1 . Corruption Purged . | . . . . . . Corruption Blocked . | . . . . . . Effects 36 | . 2 16 4 14 . Message Errors 10 | . 1 4 1 4 . Matter Fused 11 | . 1 5 . 5 . Heat Flow Errors 2 | . . . 1 1 . Energy Discharges 1 | . . 1 . . . Data Loss (minor) 8 | . . 3 2 3 . Data Loss (major) 1 | . . 1 . . . Misfires 2 | . . 1 . 1 . Weapon Failures 1 | . . 1 . . . Overload Shots . | . . . . . . Overflow Damage 68 | . . . . 10 58 Projectiles 44 | . . . . . 44 Explosions . | . . . . . . Melee 24 | . . . . 10 14 Knockbacks 26 | . . . . . 26 Impact . | . . . . . . Kinetic 25 | . . . . . 25 Secondary 1 | . . . . . 1 Self-Inflicted Damage . | . . . . . . Shots . | . . . . . . Rammed 7 | . . 1 . 5 1 Targets Rammed 8 | . . 2 . 5 1 Kicked . | . . . . . . Crushed 1 | . . 1 . . . Highest Temperature 185 | . 23 51 181 185 54 Average Temperature 30 | . 7 30 92 94 21 Received Heat Transfer 1296 | . 294 147 . . 855 Siege Activations . | . . . . . . Martial Activations . | . . . . . . Shielding Activations . | . . . . . . Robots Disrupted . | . . . . . . Combat Hostiles . | . . . . . . Robots Corrupted . | . . . . . . Combat Hostiles . | . . . . . . Parts Fried . | . . . . . . Impact Corruptions . | . . . . . . Robots Melted . | . . . . . . Combat Hostiles . | . . . . . . Parts Melted . | . . . . . . Heat Transferred . | . . . . . . Parts Sabotaged . | . . . . . . Parts Stolen . | . . . . . . Parts Stripped . | . . . . . . Power Chain Reactions . | . . . . . . Alert | -11 -10 -10 -10 -9 -8 ------- Run | Yrd Mat Min Exi Min Mat Maximum Alert Level . | . . . . . . Low Security (%) 100 | 100 100 100 . 100 100 Level 1 . | . . . . . . Level 2 . | . . . . . . Level 3 . | . . . . . . Level 4 . | . . . . . . Level 5 . | . . . . . . High Security . | . . . . . . Max Security . | . . . . . . Peak Influence 103 | 5 103 77 . 5 80 Initial 7 | . . 7 . . . Average 12 | . 16 10 . . 17 Influence Increases 990 | 5 445 216 . 5 319 Destroy 0b10 Robot/C 600 | . 260 160 . . 180 Destroy 0b10 Robot/NC 90 | 5 30 10 . 5 40 Destroy Leader 142 | . 68 30 . . 44 Successful Hack 39 | . 32 . . . 7 Destroy Structure 29 | . 10 1 . . 18 Partial Spotted 15 | . . . . . 15 Lose Combat Pursuer 75 | . 45 15 . . 15 Influence Decreases 930 | 5 426 231 4 5 259 Entered New Map 16 | . . 12 4 . . Time Decay 874 | 5 426 219 . 5 219 Lost Part 40 | . . . . . 40 Squads Dispatched 6 | . 3 . . . 3 Investigation 1 | . 1 . . . . Extermination . | . . . . . . Reinforcement 5 | . 2 . . . 3 Assault . | . . . . . . Garrison . | . . . . . . Intercept . | . . . . . . Searches Triggered . | . . . . . . Construction Impeded 1 | . . . . . 1 Haulers Reinforced . | . . . . . . Active Scanning Responses . | . . . . . . Cargo Convoy Interrupts . | . . . . . . Stealth | -11 -10 -10 -10 -9 -8 --------- Run | Yrd Mat Min Exi Min Mat Distress Signals 5 | . 2 1 . . 2 Communications Jammed . | . . . . . . Distress Signals . | . . . . . . Times Spotted 59 | . 30 9 . 1 19 Peak Tracking Total 5 | . 4 3 . 2 5 Tactical Retreats 5 | . 2 1 . 1 1 Traps | -11 -10 -10 -10 -9 -8 ------- Run | Yrd Mat Min Exi Min Mat Traps Triggered 6 | . 6 . . . . Indirectly . | . . . . . . Trap Hack Attempts . | . . . . . . Triggered . | . . . . . . Disarmed . | . . . . . . Reprogrammed . | . . . . . . Reused . | . . . . . . Traps Extracted . | . . . . . . Installed . | . . . . . . Triggered . | . . . . . . Machines | -11 -10 -10 -10 -9 -8 ---------- Run | Yrd Mat Min Exi Min Mat Machines Disabled . | . . . . . . Max in Single Turn . | . . . . . . Machines Repaired . | . . . . . . Machines Dismantled . | . . . . . . Machines Sabotaged . | . . . . . . Overloaded Fab Kills . | . . . . . . Hacking | -11 -10 -10 -10 -9 -8 --------- Run | Yrd Mat Min Exi Min Mat Machines Accessed 14 | . 9 . 1 . 4 Terminals 8 | . 6 . . . 2 Fabricators . | . . . . . . Repair Stations 2 | . 1 . . . 1 Recycling Units 3 | . 2 . . . 1 Scanalyzers . | . . . . . . Garrison Access . | . . . . . . Total Hacks 34 | . 24 . 1 . 9 Successful 20 | . 13 . 1 . 6 Failed 14 | . 11 . . . 3 Catastrophic 2 | . 2 . . . . Database Lockouts . | . . . . . . Manual 15 | . 11 . 1 . 3 Terminals 25 | . 19 . . . 6 Fabricators . | . . . . . . Repair Stations 4 | . 2 . . . 2 Recycling Units 4 | . 3 . . . 1 Scanalyzers . | . . . . . . Garrison Access . | . . . . . . Terminal Hacks 11 | . 8 . 1 . 2 Robot Analysis 2 | . 2 . . . . Locate Traps 3 | . 2 . . . 1 Recall Investigation 1 | . 1 . . . . Hauler Manifests 3 | . 2 . . . 1 Zone Layout 1 | . 1 . . . . Proto ID Catalog 1 | . . . 1 . . Fabricator Hacks . | . . . . . . Repair Station Hacks 3 | . 1 . . . 2 Scan Component 2 | . 1 . . . 1 Repair 1 | . . . . . 1 Recycling Unit Hacks 2 | . 1 . . . 1 Retrieve Components 2 | . 1 . . . 1 Scanalyzer . | . . . . . . Garrison Access Hacks . | . . . . . . Unauthorized Hacks 4 | . 3 . . . 1 Terminals 4 | . 3 . . . 1 Botnet 3 | . 2 . . . 1 Operators 1 | . 1 . . . . Fabricators . | . . . . . . Repair Stations . | . . . . . . Recycling Units . | . . . . . . Scanalyzers . | . . . . . . Garrison Access . | . . . . . . Data Cores Recovered . | . . . . . . Used . | . . . . . . Hacking Detections 10 | . 8 . . . 2 Full Trace Events 1 | . 1 . . . . Feedback Events . | . . . . . . Feedback Blocked . | . . . . . . Robot Schematics Acquired . | . . . . . . Robots Built . | . . . . . . Authchips . | . . . . . . Time . | . . . . . . Total Robot Build Rating . | . . . . . . Part Schematics Acquired . | . . . . . . Parts Built . | . . . . . . Authchips . | . . . . . . Time . | . . . . . . Total Part Build Rating . | . . . . . . Parts Repaired 1 | . . . . . 1 Time 26 | . . . . . 26 Parts Recycled . | . . . . . . Recycled Matter . | . . . . . . Retrieved Matter . | . . . . . . Retrieved Components 13 | . 10 . . . 3 Parts Scanalyzed . | . . . . . . Part Schematics Acquired . | . . . . . . Parts Damaged . | . . . . . . Bothacking | -11 -10 -10 -10 -9 -8 ------------ Run | Yrd Mat Min Exi Min Mat Used RIF Installer . | . . . . . . Robots Hacked . | . . . . . . Non-combat . | . . . . . . Combat . | . . . . . . Robot Hacks Applied . | . . . . . . Relay Couplers Released . | . . . . . . Fabnet Peak Effective % . | . . . . . . Robots Rewired . | . . . . . . Allies Hacked . | . . . . . . Hacks Repelled . | . . . . . . Allies | -11 -10 -10 -10 -9 -8 -------- Run | Yrd Mat Min Exi Min Mat Total Allies 3 | . . . . 3 . Largest Group 3 | . . . . 3 3 Highest-Rated Group 40 | . . . . 40 40 Highest-Rated Ally 16 | . . . . 16 16 Total Orders 1 | . . . . . 1 STAY 1 | . . . . . 1 Ally Attacks 1 | . . . . 1 . Total Damage 12 | . . . . 12 . Kills 1 | . . . . 1 . Allies Corrupted . | . . . . . . Allies Melted . | . . . . . . Intel | -11 -10 -10 -10 -9 -8 ------- Run | Yrd Mat Min Exi Min Mat Active Infowar (turns) 2283 | 2 1557 . . . 724 Structural 724 | . . . . . 724 Seismic 1559 | 2 1557 . . . . Robot Analysis Total 2 | . 2 . . . . Derelict Logs Recovered 1 | . . 1 . . . Drone Launches . | . . . . . . Drone Recoveries . | . . . . . . Exploration | -11 -10 -10 -10 -9 -8 ------------- Run | Yrd Mat Min Exi Min Mat Turns Passed 7184 | 60 2451 1444 595 1302 1332 Spaces Moved 2454 | 4 987 434 213 401 415 Core 7 | . 7 . . . . Treads 2147 | . 684 434 213 401 415 Legs 300 | 4 296 . . . . Wheels . | . . . . . . Hover . | . . . . . . Flight . | . . . . . . Fastest Speed 120 | 120 120 240 240 320 230 Average Speed 255 | 120 208 312 277 320 235 Slowest Speed 1450 | 120 1450 320 320 320 240 Overloaded Moves . | . . . . . . Propulsion Burnouts . | . . . . . . Robots Hopped . | . . . . . . Potential Cave-ins . | . . . . . . Cave-ins Triggered . | . . . . . . Exploration Rate (%) 60 | 2 95 79 61 89 39 Regions Visited 5 Branch Regions 3 Pre-discovered Areas 1 | . . 1 . . . Known Exits Taken . | . . . . . . Unknown Exits Taken 5 | 1 1 1 1 1 . Scrap Searched 5 | . . 3 . 2 . Spaces Dug 16 | . 10 1 . . 5 Terrain Destroyed 26 | . 10 1 . . 15 Melee 12 | . 6 1 . . 5 Projectile 14 | . 4 . . . 10 AOE . | . . . . . . Terrain Rammed . | . . . . . . Walls Destroyed . | . . . . . . Machines Disabled . | . . . . . . Actions | -11 -10 -10 -10 -9 -8 --------- Run | Yrd Mat Min Exi Min Mat Total 3009 | 57 1229 471 221 408 623 Wait 227 | 52 81 3 . . 91 Move 2449 | 3 986 433 212 400 415 Hop . | . . . . . . Pick Up 43 | . 30 3 2 1 7 Fast Attach 18 | 1 13 . . . 4 Attach 13 | . 4 1 2 . 6 Detach 2 | . . . 2 . . Swap 46 | . 19 6 . 1 20 Drop 30 | . 18 . 3 . 9 Fire 137 | 1 62 20 . . 54 Melee 36 | . 16 3 . 1 16 Ram . | . . . . . . Kick . | . . . . . . Crush 8 | . . 2 . 5 1 Escape Stasis . | . . . . . . Rewire . | . . . . . . Trap . | . . . . . . Miscellaneous . | . . . . . . Route ------- -11/Scrapyard -10/Materials (discovered 5 exits: [*Mat x3] / *Min / [*Sub]) -10/Mines (discovered 3 exits: [*Mat] / *Exi / [*Sub]) -10/Exiles -9/Mines -8/Materials (discovered 2 exits: [*Fac x2]) History --------- Turn | Location | Event 51 | -11/Scrapyard | Discovered new exit (range 2) 61 | -11/Scrapyard | Entered Materials 174 | -10/Materials | Discovered new exit (range 10) 256 | -10/Materials | Discovered new exit (range 8) 302 | -10/Materials | Build established: Mutant 561 | -10/Materials | Derelicts attacked the area 653 | -10/Materials | Discovered new exit (range 8) 1315 | -10/Materials | Discovered new exit (range 14) 1736 | -10/Materials | Discovered new exit (range 5) 2512 | -10/Materials | Entered Mines 2628 | -10/Mines | Core integrity fell below 50% 3201 | -10/Mines | Discovered new exit (range 10) 3297 | -10/Mines | Learned location of Zion (-7) 3547 | -10/Mines | Discovered new exit (range 7) 3671 | -10/Mines | Deemed a non-threat by the Exiles lab entrance 3816 | -10/Mines | Excavation squad dispatched 3816 | -10/Mines | A large section of the Mines collapsed 3943 | -10/Mines | Discovered new exit (range 5) 3956 | -10/Mines | Entered Exiles 4018 | -10/Exiles | Met 8R-AWN 4059 | -10/Exiles | Met EX-HEX 4122 | -10/Exiles | Met EX-BIN 4153 | -10/Exiles | Aligned with FarCom system 4155 | -10/Exiles | Given EX-Vault access code 4215 | -10/Exiles | Opened EX-Vault 4228 | -10/Exiles | Found Gui. Plasma Cannon 4298 | -10/Exiles | Warned to stay clear of 0b10 Research branches 4401 | -10/Exiles | Met EX-DEC 4522 | -10/Exiles | Discovered new exit (range 10) 4551 | -10/Exiles | Left Exiles lab with Gui. Plasma Cannon 4551 | -10/Exiles | Entered Mines 4558 | -9/Mines | Assisted by bots powering up and referring to "LRC-V3" 4587 | -9/Mines | Discovered new exit (range 6) 4611 | -9/Mines | Met a Derelict bent on vengeance 5103 | -9/Mines | Found a damaged Exp. Sensor Array with a note attached 5110 | -9/Mines | Found Prototype Device 5272 | -9/Mines | Assembled infested the area 5853 | -9/Mines | Entered Materials 5853 | -8/Materials | Accompanied by 3 allies 5853 | -8/Materials | Evolved 4 slots: Propulsion x2, Utility x2 6310 | -8/Materials | Discovered new exit (range 12) 6577 | -8/Materials | Repaired Lgt. Armor Plating 6988 | -8/Materials | Lost 4 parts (1p1n1u1w) 7129 | -8/Materials | Discovered new exit (range 14) 7185 | -8/Materials | Self-destructed Last Messages --------------- 07085_ K-01 Serf collects debris. 07092_ U-05 Engineer builds a Wall. 07094_ K-01 Serf collects debris. 07098_ Acquired 53 matter. 07100_ K-01 Serf collects debris. 07102_ Acquired 4 matter. 07104_ K-01 Serf collects debris. 07107_ K-01 Serf cleans the Electrolysis Chamber. 07116_ Dropped Lgt. Ion Engine. 07124_ Penetrated by Slug. 07129_ EXIT=FOUND 07139_ Slug penetrates Wall. 07141_ H-55 Commando knocked back. 07142_ Slug penetrates Wall. 07156_ H-55 Commando knocked back. 07156_ Slug penetrates Wall. 07159_ H-55 Commando knocked back. 07168_ Penetrated by Slug. 07177_ Slug penetrates Wall. Map ----- +----------------------------------------------------+ | #! # # """ #??#+##????????????? | | # # # """ #?? #########????? | | ###### # """ + ? " ?????? | | ???### # """ ! ### #??????? | | ?????# # ?? #??# #??????? | | ?????# #?#???####??# #??????? | | ?????# #???????????# #??????? | | ?????# ############# #??????? | | ?????# ^ #??????? | | ?????# #????????????? | | ?????#####+###########/######???????? | | ???????? ??????# #???????? | | ???????# !#????#"""w #???????? | | ???????# #????#""" #???????? | | ???????# """ #????#""" #???????? | | ???????# """ #????# ! #???????? | | ???????# """ #????#""" * ##??????? | | ???????########????#""" ! ##??????? | | ???????????????????#""" #???????? | | ???????????????????# #???????? | | ???????????????????######+###???????? | | ????????############### % ##### ##? | | ????????# h #? | | ????????# < % + | | ????????# % #? | | ????????####@########## ###+####? | | ?????????? ???????#######??? /??? | | ?????????# "" #???????????????? #?? | | ?????????# """ #?????????????????#?? | | ?????????# S" #???????????????????? | | ?????????#! #???????????????????? | | ?????????# #???????????????????? | | ?????????########???????????????????? | | ????????????????????????????????????? | | ????????????????????????????????????? | | ????????????????????????????????????? | | ????????????????????????????????????? | | ????????????????????????????????????? | | ????????????????????????????????????? | | ????????????????????????????????????? | | ????????????????????????????????????? | | ????????????????????????????????????? | | ????????????????????????????????????? | | ????????????????????????????????????? | | ????????????????????????????????????? | | ????????????????????????????????????? | | ????????????????????????????????????? | | ????????????????????????????????????? | | ????????????????????????????????????? | | ????????????????????????????????????? | +----------------------------------------------------+ Best States ------------- Heat Dissipation 53 Energy Generation 14 Energy Capacity 265 Matter Stores 415 Matter Capacity 450 Sight Range 16 Terrain Scan Density 10 Armor Coverage 150 Propulsion Shielding 33 Utility Shielding 33 Evasion (%) 55 Recoil Reduction 4 Item Schematics ----------------- None Robot Schematics ------------------ None Fabricated ------------ Nothing Repaired ---------- Lgt. Armor Plating | 5% | -8/Materials Alien Tech Used ----------------- None Achievements -------------- Fist Fight Challenges ------------ None Game ------ Seed NetworkedRagnarokShielding Manual? 0 Play Time 00:45:01 Cumulative 51.6 hours Start 2025.07.11 @ 11:39:24 End 2025.07.11 @ 14:07:44 Sessions 3 Manual Loads 0 Difficulty Rogue Special Mode None Game No. 34 Rogue 34 Adventurer 0 Explorer 0 Win Type - Total 1 Types 1/0/0/0/0/0/0/0/0/0 Lore% 24 Gallery% 29 Achievement% 28 Wizard Run 0 Options --------- Layout 2 ASCII 0 Keyboard 0 Movement Numpad Keybinds 0 Fullscreen 1 Font 32/SmallcapsGlow Map View 50x44 Zoom Use 0% Tactical HUD 1 Map Filters NONE Filters NONE Steam 1 RUN: 2bd9309f-7a5b-431b-84a9-6d7ac9bbc91a